[Event "Titled Tuesday Blitz June 27 Late 2023"]
[White "Veiga, Jose Francisco R P Neves"]
[Black "Tomaszewski, Kacper"]
[WhiteFideId "1930087"]
[BlackFideId "1127373"]
[WhiteElo "2659"]
[BlackElo "2467"]
[Result "1-0"]
[Round "8"]
[TimeControl "180+2"]
[Date "2023.06.27"]
[WhiteClock "0:01:22"]
[BlackClock "0:00:34"]
[Board "68"]

1. c4 {[%clk 0:03:00]}  Nf6 {[%clk 0:02:58]} 2. Nc3 {[%clk 0:03:00]}  e6 {[%clk 0:02:59]} 3. e4 {[%clk 0:03:00]}  c5 {[%clk 0:02:56]} 4. g3 {[%clk 0:02:57]}  Nc6 {[%clk 0:02:55]} 5. Bg2 {[%clk 0:02:57]}  Be7 {[%clk 0:02:54]} 6. Nge2 {[%clk 0:02:58]}  O-O {[%clk 0:02:54]} 7. d4 {[%clk 0:02:58]}  cxd4 {[%clk 0:02:54]} 8. Nxd4 {[%clk 0:02:59]}  d6 {[%clk 0:02:54]} 9. O-O {[%clk 0:02:57]}  Bd7 {[%clk 0:02:54]} 10. Be3 {[%clk 0:02:55]}  Ne5 {[%clk 0:02:47]} 11. b3 {[%clk 0:02:55]}  Rc8 {[%clk 0:02:46]} 12. Rc1 {[%clk 0:02:54]}  a6 {[%clk 0:02:46]} 13. h3 {[%clk 0:02:53]}  Nc6 {[%clk 0:02:37]} 14. Qe2 {[%clk 0:02:52]}  Nxd4 {[%clk 0:02:35]} 15. Bxd4 {[%clk 0:02:51]}  Bc6 {[%clk 0:02:33]} 16. Rfd1 {[%clk 0:02:46]}  Qa5 {[%clk 0:02:33]} 17. Qe3 {[%clk 0:02:38]}  Nd7 {[%clk 0:02:28]} 18. Ne2 {[%clk 0:02:25]}  e5 {[%clk 0:02:19]} 19. Bc3 {[%clk 0:02:18]}  Qxa2 {[%clk 0:02:15]} 20. Bb4 {[%clk 0:02:12]}  a5 {[%clk 0:01:44]} 21. Rd2 {[%clk 0:02:07]}  Qxd2 {[%clk 0:01:20]} 22. Bxd2 {[%clk 0:02:05]}  b6 {[%clk 0:01:21]} 23. b4 {[%clk 0:02:03]}  axb4 {[%clk 0:01:20]} 24. Bxb4 {[%clk 0:02:04]}  Nc5 {[%clk 0:01:21]} 25. Bxc5 {[%clk 0:02:02]}  dxc5 {[%clk 0:01:21]} 26. Nc3 {[%clk 0:02:02]}  h6 {[%clk 0:01:19]} 27. h4 {[%clk 0:02:01]}  Ra8 {[%clk 0:01:13]} 28. Nd5 {[%clk 0:01:59]}  Bd8 {[%clk 0:01:13]} 29. Rb1 {[%clk 0:01:57]}  Ra6 {[%clk 0:01:07]} 30. Kh2 {[%clk 0:01:49]}  f6 {[%clk 0:01:05]} 31. Qf3 {[%clk 0:01:47]}  Rf7 {[%clk 0:01:04]} 32. Bh3 {[%clk 0:01:44]}  Kf8 {[%clk 0:01:01]} 33. Be6 {[%clk 0:01:43]}  Rfa7 {[%clk 0:00:59]} 34. Qf5 {[%clk 0:01:41]}  Be8 {[%clk 0:00:49]} 35. h5 {[%clk 0:01:36]}  Bf7 {[%clk 0:00:42]} 36. Bxf7 {[%clk 0:01:35]}  Kxf7 {[%clk 0:00:43]} 37. Qc8 {[%clk 0:01:34]}  Ra8 {[%clk 0:00:40]} 38. Qd7+ {[%clk 0:01:31]}  Kf8 {[%clk 0:00:40]} 39. Nxb6 {[%clk 0:01:23]}  Bxb6 {[%clk 0:00:37]} 40. Qd6+ {[%clk 0:01:23]}  Kf7 {[%clk 0:00:37]} 41. Rxb6 {[%clk 0:01:23]}  Ra2 {[%clk 0:00:37]} 42. Qd5+ {[%clk 0:01:21]}  Kf8 {[%clk 0:00:34]} 43. Kg2 {[%clk 0:01:22]} 1-0


[Site "https://www.chess.com"]

[Event "Titled Tuesday Blitz June 27 Late 2023"]
[White "cafu1950"]
[Black "Kisic, Bozidar"]
[BlackFideId "16500350"]
[WhiteElo "2619"]
[BlackElo "2456"]
[Result "1-0"]
[Round "8"]
[TimeControl "180+2"]
[Date "2023.06.27"]
[WhiteClock "0:01:39"]
[BlackClock "0:01:55"]
[Board "70"]

1. d4 {[%clk 0:03:00]}  d5 {[%clk 0:02:56]} 2. Nc3 {[%clk 0:03:01]}  e6 {[%clk 0:02:54]} 3. Bf4 {[%clk 0:03:01]}  Bd6 {[%clk 0:02:53]} 4. Bxd6 {[%clk 0:03:00]}  Qxd6 {[%clk 0:02:53]} 5. Nf3 {[%clk 0:02:56]}  Nd7 {[%clk 0:02:47]} 6. a3 {[%clk 0:02:50]}  a6 {[%clk 0:02:44]} 7. e4 {[%clk 0:02:48]}  dxe4 {[%clk 0:02:41]} 8. Nxe4 {[%clk 0:02:49]}  Qb6 {[%clk 0:02:42]} 9. b3 {[%clk 0:02:40]}  Ngf6 {[%clk 0:02:41]} 10. Nxf6+ {[%clk 0:02:38]}  Nxf6 {[%clk 0:02:41]} 11. Bd3 {[%clk 0:02:37]}  O-O {[%clk 0:02:40]} 12. O-O {[%clk 0:02:38]}  Rd8 {[%clk 0:02:36]} 13. Qe2 {[%clk 0:02:38]}  Bd7 {[%clk 0:02:35]} 14. Rad1 {[%clk 0:02:31]}  Bb5 {[%clk 0:02:35]} 15. c4 {[%clk 0:02:28]}  Bc6 {[%clk 0:02:34]} 16. Ne5 {[%clk 0:02:05]}  Qxb3 {[%clk 0:02:15]} 17. Nxc6 {[%clk 0:01:40]}  bxc6 {[%clk 0:02:13]} 18. Qf3 {[%clk 0:01:41]}  Qxa3 {[%clk 0:01:55]} 19. Bxh7+ {[%clk 0:01:39]} 1-0


[Site "https://www.chess.com"]

[Event "Titled Tuesday Blitz June 27 Late 2023"]
[White "Martinez Ramirez, Lennis"]
[Black "szachmistrz2500"]
[WhiteFideId "3509079"]
[WhiteElo "2615"]
[BlackElo "2449"]
[Result "1/2-1/2"]
[Round "8"]
[TimeControl "180+2"]
[Date "2023.06.27"]
[WhiteClock "0:01:06"]
[BlackClock "0:00:37"]
[Board "71"]

1. b3 {[%clk 0:03:00]}  Nf6 {[%clk 0:02:56]} 2. Bb2 {[%clk 0:03:01]}  g6 {[%clk 0:02:56]} 3. Bxf6 {[%clk 0:03:01]}  exf6 {[%clk 0:02:55]} 4. c4 {[%clk 0:03:02]}  Bg7 {[%clk 0:02:55]} 5. Nc3 {[%clk 0:03:03]}  f5 {[%clk 0:02:54]} 6. g3 {[%clk 0:03:03]}  d6 {[%clk 0:02:52]} 7. Bg2 {[%clk 0:03:04]}  Nc6 {[%clk 0:02:49]} 8. e3 {[%clk 0:03:03]}  h5 {[%clk 0:02:48]} 9. h4 {[%clk 0:02:52]}  Be6 {[%clk 0:02:42]} 10. Nge2 {[%clk 0:02:52]}  Rb8 {[%clk 0:02:38]} 11. d4 {[%clk 0:02:52]}  Ne7 {[%clk 0:02:34]} 12. d5 {[%clk 0:02:52]}  Bd7 {[%clk 0:02:33]} 13. a4 {[%clk 0:02:52]}  Ng8 {[%clk 0:02:29]} 14. Rc1 {[%clk 0:02:51]}  Nf6 {[%clk 0:02:29]} 15. Nd4 {[%clk 0:02:51]}  a6 {[%clk 0:02:27]} 16. b4 {[%clk 0:02:46]}  Qe7 {[%clk 0:02:26]} 17. c5 {[%clk 0:02:44]}  O-O {[%clk 0:02:25]} 18. c6 {[%clk 0:02:44]}  bxc6 {[%clk 0:02:24]} 19. dxc6 {[%clk 0:02:44]}  Be6 {[%clk 0:02:24]} 20. b5 {[%clk 0:02:44]}  axb5 {[%clk 0:02:20]} 21. Ndxb5 {[%clk 0:02:40]}  Ng4 {[%clk 0:02:06]} 22. O-O {[%clk 0:02:37]}  Bc4 {[%clk 0:01:41]} 23. Nd5 {[%clk 0:02:34]}  Bxd5 {[%clk 0:01:39]} 24. Qxd5 {[%clk 0:02:34]}  Ra8 {[%clk 0:01:34]} 25. Rc4 {[%clk 0:02:33]}  Ra5 {[%clk 0:01:31]} 26. e4 {[%clk 0:02:29]}  f4 {[%clk 0:01:19]} 27. e5 {[%clk 0:02:05]}  Bxe5 {[%clk 0:01:14]} 28. Bf3 {[%clk 0:01:44]}  Nf6 {[%clk 0:01:00]} 29. Qd2 {[%clk 0:01:39]}  fxg3 {[%clk 0:00:59]} 30. Qxa5 {[%clk 0:01:38]}  Ng4 {[%clk 0:00:48]} 31. Kg2 {[%clk 0:01:27]}  Qxh4 {[%clk 0:00:42]} 32. Rh1 {[%clk 0:01:26]}  Ne3+ {[%clk 0:00:42]} 33. fxe3 {[%clk 0:01:26]}  Qxc4 {[%clk 0:00:43]} 34. Nxc7 {[%clk 0:01:17]}  Qc2+ {[%clk 0:00:41]} 35. Kh3 {[%clk 0:01:14]}  Qf5+ {[%clk 0:00:40]} 36. Kg2 {[%clk 0:01:12]}  Qc2+ {[%clk 0:00:39]} 37. Kh3 {[%clk 0:01:12]}  Qf5+ {[%clk 0:00:37]} 38. Kg2 {[%clk 0:01:06]}  Qc2+ {[%clk 0:00:37]} 1/2-1/2


[Site "https://www.chess.com"]

[Event "Titled Tuesday Blitz June 27 Late 2023"]
[White "Sun, Rick"]
[Black "Pinto, Daniel"]
[WhiteFideId "30909481"]
[BlackFideId "3303144"]
[WhiteElo "2590"]
[BlackElo "2421"]
[Result "1-0"]
[Round "8"]
[TimeControl "180+2"]
[Date "2023.06.27"]
[WhiteClock "0:00:08"]
[BlackClock "0:00:00"]
[Board "72"]

1. d4 {[%clk 0:03:00]}  Nf6 {[%clk 0:02:59]} 2. Nc3 {[%clk 0:03:01]}  c5 {[%clk 0:02:56]} 3. d5 {[%clk 0:03:01]}  d6 {[%clk 0:02:56]} 4. e4 {[%clk 0:02:59]}  g6 {[%clk 0:02:56]} 5. Nf3 {[%clk 0:02:57]}  Bg7 {[%clk 0:02:56]} 6. Bb5+ {[%clk 0:02:56]}  Nfd7 {[%clk 0:02:54]} 7. a4 {[%clk 0:02:56]}  O-O {[%clk 0:02:54]} 8. h4 {[%clk 0:02:56]}  Nf6 {[%clk 0:02:50]} 9. h5 {[%clk 0:02:40]}  Bg4 {[%clk 0:02:25]} 10. hxg6 {[%clk 0:02:17]}  fxg6 {[%clk 0:02:23]} 11. Be3 {[%clk 0:01:57]}  Nbd7 {[%clk 0:02:18]} 12. Qd2 {[%clk 0:01:55]}  Bxf3 {[%clk 0:02:17]} 13. gxf3 {[%clk 0:01:55]}  Ne5 {[%clk 0:01:59]} 14. Be2 {[%clk 0:01:54]}  Rb8 {[%clk 0:01:59]} 15. Bh6 {[%clk 0:01:37]}  Nh5 {[%clk 0:01:50]} 16. Be3 {[%clk 0:01:03]}  Nxf3+ {[%clk 0:01:41]} 17. Bxf3 {[%clk 0:00:55]}  Rxf3 {[%clk 0:01:42]} 18. O-O-O {[%clk 0:00:52]}  Qd7 {[%clk 0:01:40]} 19. Qe2 {[%clk 0:00:46]}  Rbf8 {[%clk 0:01:40]} 20. Rdg1 {[%clk 0:00:45]}  Nf4 {[%clk 0:00:59]} 21. Qd1 {[%clk 0:00:38]}  Nh3 {[%clk 0:00:58]} 22. Rg3 {[%clk 0:00:23]}  Rxg3 {[%clk 0:00:50]} 23. fxg3 {[%clk 0:00:22]}  Nf2 {[%clk 0:00:37]} 24. Bxf2 {[%clk 0:00:21]}  Rxf2 {[%clk 0:00:38]} 25. Qe1 {[%clk 0:00:20]}  Bd4 {[%clk 0:00:29]} 26. Rf1 {[%clk 0:00:19]}  Rxf1 {[%clk 0:00:20]} 27. Qxf1 {[%clk 0:00:20]}  Qg4 {[%clk 0:00:20]} 28. Ne2 {[%clk 0:00:16]}  Be3+ {[%clk 0:00:14]} 29. Kb1 {[%clk 0:00:17]}  Qxe4 {[%clk 0:00:15]} 30. Nc3 {[%clk 0:00:16]}  Qf5 {[%clk 0:00:08]} 31. Qb5 {[%clk 0:00:16]}  b6 {[%clk 0:00:03]} 32. Qe8+ {[%clk 0:00:13]}  Qf8 {[%clk 0:00:04]} 33. Qd7 {[%clk 0:00:13]}  Bd4 {[%clk 0:00:04]} 34. Ne4 {[%clk 0:00:09]}  Qf1+ {[%clk 0:00:02]} 35. Ka2 {[%clk 0:00:09]}  Qf7 {[%clk 0:00:03]} 36. c4 {[%clk 0:00:07]}  h6 {[%clk 0:00:03]} 37. Qxa7 {[%clk 0:00:07]}  Kg7 {[%clk 0:00:02]} 38. Qxb6 {[%clk 0:00:07]}  g5 {[%clk 0:00:03]} 39. a5 {[%clk 0:00:07]}  Qf5 {[%clk 0:00:02]} 40. a6 {[%clk 0:00:07]}  Qxe4 {[%clk 0:00:01]} 41. a7 {[%clk 0:00:07]}  Qc2 {[%clk 0:00:02]} 42. Qb3 {[%clk 0:00:07]}  Qxb3+ {[%clk 0:00:00]} 43. Kxb3 {[%clk 0:00:08]} 1-0


[Site "https://www.chess.com"]

[Event "Titled Tuesday Blitz June 27 Late 2023"]
[White "Yolosz"]
[Black "Bitoon, Richard"]
[BlackFideId "5201110"]
[WhiteElo "2413"]
[BlackElo "2574"]
[Result "0-1"]
[Round "8"]
[TimeControl "180+2"]
[Date "2023.06.27"]
[WhiteClock "0:00:11"]
[BlackClock "0:01:07"]
[Board "73"]

1. d4 {[%clk 0:03:00]}  Nf6 {[%clk 0:03:00]} 2. Bf4 {[%clk 0:03:00]}  d6 {[%clk 0:03:00]} 3. e3 {[%clk 0:02:54]}  g6 {[%clk 0:02:58]} 4. Nc3 {[%clk 0:02:53]}  Nbd7 {[%clk 0:02:59]} 5. h4 {[%clk 0:02:52]}  e5 {[%clk 0:02:59]} 6. Bg3 {[%clk 0:02:51]}  Nh5 {[%clk 0:02:59]} 7. Nge2 {[%clk 0:02:46]}  Bg7 {[%clk 0:02:53]} 8. d5 {[%clk 0:02:42]}  f5 {[%clk 0:02:41]} 9. Qd2 {[%clk 0:02:39]}  Nb6 {[%clk 0:02:34]} 10. b3 {[%clk 0:02:21]}  f4 {[%clk 0:02:19]} 11. exf4 {[%clk 0:02:11]}  exf4 {[%clk 0:02:20]} 12. Bxf4 {[%clk 0:02:10]}  Nxf4 {[%clk 0:02:12]} 13. Nxf4 {[%clk 0:01:52]}  O-O {[%clk 0:01:52]} 14. Ne6 {[%clk 0:01:19]}  Bxe6 {[%clk 0:01:38]} 15. dxe6 {[%clk 0:01:18]}  Qf6 {[%clk 0:01:39]} 16. Rh3 {[%clk 0:01:07]}  Rae8 {[%clk 0:01:38]} 17. O-O-O {[%clk 0:00:58]}  Qxf2 {[%clk 0:01:24]} 18. Qxf2 {[%clk 0:00:44]}  Rxf2 {[%clk 0:01:25]} 19. Re1 {[%clk 0:00:39]}  Rf6 {[%clk 0:01:14]} 20. Nb5 {[%clk 0:00:20]}  Rfxe6 {[%clk 0:01:13]} 21. Rxe6 {[%clk 0:00:18]}  Rxe6 {[%clk 0:01:14]} 22. Bd3 {[%clk 0:00:15]}  c6 {[%clk 0:01:14]} 23. Nxa7 {[%clk 0:00:15]}  Bc3 {[%clk 0:01:11]} 24. Bc4 {[%clk 0:00:13]}  Nxc4 {[%clk 0:01:09]} 25. Rxc3 {[%clk 0:00:11]}  Re1# {[%clk 0:01:07]} 0-1


[Site "https://www.chess.com"]

[Event "Titled Tuesday Blitz June 27 Late 2023"]
[White "Bayo Milagro, Alvaro"]
[Black "Arnold, Ken"]
[WhiteFideId "22275240"]
[BlackFideId "2056836"]
[WhiteElo "2573"]
[BlackElo "2402"]
[Result "1-0"]
[Round "8"]
[TimeControl "180+2"]
[Date "2023.06.27"]
[WhiteClock "0:00:52"]
[BlackClock "0:00:10"]
[Board "74"]

1. Nf3 {[%clk 0:03:00]}  c6 {[%clk 0:03:00]} 2. d4 {[%clk 0:02:58]}  d5 {[%clk 0:03:01]} 3. c4 {[%clk 0:02:58]}  Nf6 {[%clk 0:03:02]} 4. Nc3 {[%clk 0:02:58]}  Bg4 {[%clk 0:03:01]} 5. Ne5 {[%clk 0:02:58]}  Be6 {[%clk 0:03:00]} 6. cxd5 {[%clk 0:02:55]}  Nxd5 {[%clk 0:03:00]} 7. e4 {[%clk 0:02:55]}  Nxc3 {[%clk 0:03:00]} 8. bxc3 {[%clk 0:02:56]}  Nd7 {[%clk 0:02:59]} 9. Nf3 {[%clk 0:02:54]}  Nf6 {[%clk 0:02:58]} 10. e5 {[%clk 0:02:53]}  Nd5 {[%clk 0:02:49]} 11. Bd2 {[%clk 0:02:53]}  Nb6 {[%clk 0:02:48]} 12. Bd3 {[%clk 0:02:49]}  g6 {[%clk 0:02:45]} 13. O-O {[%clk 0:02:49]}  Bg7 {[%clk 0:02:46]} 14. Ng5 {[%clk 0:02:49]}  Qd7 {[%clk 0:02:41]} 15. Ne4 {[%clk 0:02:42]}  Bc4 {[%clk 0:02:37]} 16. Nc5 {[%clk 0:02:40]}  Qc7 {[%clk 0:02:36]} 17. Bxc4 {[%clk 0:02:38]}  Nxc4 {[%clk 0:02:36]} 18. Rb1 {[%clk 0:02:25]}  b6 {[%clk 0:02:32]} 19. Ne4 {[%clk 0:02:24]}  Nxd2 {[%clk 0:02:31]} 20. Qxd2 {[%clk 0:02:24]}  O-O {[%clk 0:02:30]} 21. f4 {[%clk 0:02:17]}  Rfd8 {[%clk 0:02:29]} 22. Rbd1 {[%clk 0:02:12]}  e6 {[%clk 0:02:08]} 23. Qf2 {[%clk 0:02:08]}  c5 {[%clk 0:01:36]} 24. Qh4 {[%clk 0:02:07]}  h6 {[%clk 0:01:19]} 25. Nf6+ {[%clk 0:02:00]}  Bxf6 {[%clk 0:01:05]} 26. exf6 {[%clk 0:02:01]}  Kh7 {[%clk 0:01:04]} 27. Rf3 {[%clk 0:02:00]}  Rd5 {[%clk 0:01:02]} 28. g4 {[%clk 0:01:50]}  cxd4 {[%clk 0:00:51]} 29. Rxd4 {[%clk 0:01:36]}  Qc5 {[%clk 0:00:45]} 30. g5 {[%clk 0:01:09]}  h5 {[%clk 0:00:40]} 31. Qf2 {[%clk 0:01:09]}  Rad8 {[%clk 0:00:31]} 32. Rfd3 {[%clk 0:01:09]}  Rxd4 {[%clk 0:00:27]} 33. Rxd4 {[%clk 0:01:09]}  Rxd4 {[%clk 0:00:26]} 34. Qxd4 {[%clk 0:01:10]}  Qxd4+ {[%clk 0:00:21]} 35. cxd4 {[%clk 0:01:10]}  Kg8 {[%clk 0:00:22]} 36. Kf2 {[%clk 0:01:10]}  Kf8 {[%clk 0:00:22]} 37. Ke3 {[%clk 0:01:11]}  Ke8 {[%clk 0:00:23]} 38. d5 {[%clk 0:01:07]}  Kd7 {[%clk 0:00:20]} 39. Kd4 {[%clk 0:01:07]}  Kd6 {[%clk 0:00:19]} 40. dxe6 {[%clk 0:01:07]}  Kxe6 {[%clk 0:00:19]} 41. Kc4 {[%clk 0:00:57]}  a6 {[%clk 0:00:17]} 42. Kd4 {[%clk 0:00:55]}  h4 {[%clk 0:00:16]} 43. h3 {[%clk 0:00:53]}  Kf5 {[%clk 0:00:09]} 44. Kd5 {[%clk 0:00:51]}  Kxf4 {[%clk 0:00:08]} 45. Kd6 {[%clk 0:00:51]}  Kg3 {[%clk 0:00:07]} 46. Ke7 {[%clk 0:00:52]}  Kxh3 {[%clk 0:00:07]} 47. Kxf7 {[%clk 0:00:52]}  Kg2 {[%clk 0:00:08]} 48. Kxg6 {[%clk 0:00:51]}  h3 {[%clk 0:00:09]} 49. f7 {[%clk 0:00:51]}  h2 {[%clk 0:00:10]} 50. f8=Q {[%clk 0:00:52]}  h1=Q {[%clk 0:00:10]} 51. Qa8+ {[%clk 0:00:52]}  Kg1 {[%clk 0:00:10]} 52. Qxh1+ {[%clk 0:00:52]}  Kxh1 {[%clk 0:00:10]} 53. Kh5 {[%clk 0:00:51]}  b5 {[%clk 0:00:11]} 54. g6 {[%clk 0:00:52]}  b4 {[%clk 0:00:10]} 55. g7 {[%clk 0:00:52]} 1-0


[Site "https://www.chess.com"]

[Event "Titled Tuesday Blitz June 27 Late 2023"]
[White "Perez, Maximiliano"]
[Black "Davidson, Kevin"]
[WhiteFideId "117234"]
[BlackFideId "2056810"]
[WhiteElo "2533"]
[BlackElo "2384"]
[Result "1-0"]
[Round "8"]
[TimeControl "180+2"]
[Date "2023.06.27"]
[WhiteClock "0:01:55"]
[BlackClock "0:00:00"]
[Board "76"]

1. e4 {[%clk 0:03:00]}  c5 {[%clk 0:02:58]} 2. Nf3 {[%clk 0:03:00]}  d6 {[%clk 0:02:58]} 3. d4 {[%clk 0:03:00]}  cxd4 {[%clk 0:02:59]} 4. Nxd4 {[%clk 0:03:00]}  Nf6 {[%clk 0:02:59]} 5. Nc3 {[%clk 0:03:01]}  a6 {[%clk 0:03:00]} 6. Be3 {[%clk 0:03:01]}  e5 {[%clk 0:03:00]} 7. Nb3 {[%clk 0:03:01]}  Be6 {[%clk 0:03:00]} 8. Be2 {[%clk 0:03:00]}  Be7 {[%clk 0:03:00]} 9. Nd5 {[%clk 0:02:54]}  Nxd5 {[%clk 0:02:59]} 10. exd5 {[%clk 0:02:54]}  Bc8 {[%clk 0:03:00]} 11. O-O {[%clk 0:02:54]}  O-O {[%clk 0:03:00]} 12. a4 {[%clk 0:02:55]}  a5 {[%clk 0:02:51]} 13. f4 {[%clk 0:02:50]}  Nd7 {[%clk 0:02:40]} 14. Kh1 {[%clk 0:02:50]}  exf4 {[%clk 0:02:06]} 15. Bxf4 {[%clk 0:02:51]}  Ne5 {[%clk 0:02:06]} 16. c4 {[%clk 0:02:46]}  Bg5 {[%clk 0:01:54]} 17. Bg3 {[%clk 0:02:28]}  Re8 {[%clk 0:01:39]} 18. Nd4 {[%clk 0:02:25]}  Qb6 {[%clk 0:01:28]} 19. Nb5 {[%clk 0:02:18]}  g6 {[%clk 0:01:00]} 20. b4 {[%clk 0:02:05]}  axb4 {[%clk 0:00:58]} 21. a5 {[%clk 0:02:06]}  Qd8 {[%clk 0:00:46]} 22. c5 {[%clk 0:01:59]}  dxc5 {[%clk 0:00:39]} 23. d6 {[%clk 0:01:59]}  Rxa5 {[%clk 0:00:31]} 24. Rxa5 {[%clk 0:02:00]}  Qxa5 {[%clk 0:00:30]} 25. Nc7 {[%clk 0:02:01]}  Rd8 {[%clk 0:00:13]} 26. Bxe5 {[%clk 0:01:59]}  Qxc7 {[%clk 0:00:07]} 27. dxc7 {[%clk 0:01:57]}  Rxd1 {[%clk 0:00:08]} 28. Rxd1 {[%clk 0:01:56]}  b5 {[%clk 0:00:00]} 29. Rd8+ {[%clk 0:01:55]} 1-0


[Site "https://www.chess.com"]

[Event "Titled Tuesday Blitz June 27 Late 2023"]
[White "Czerw, Dawid"]
[Black "Taranenko, Evgueniy"]
[WhiteFideId "1145746"]
[BlackFideId "14122138"]
[WhiteElo "2506"]
[BlackElo "2316"]
[Result "0-1"]
[Round "8"]
[TimeControl "180+2"]
[Date "2023.06.27"]
[WhiteClock "0:00:05"]
[BlackClock "0:00:13"]
[Board "78"]

1. e4 {[%clk 0:03:00]}  e6 {[%clk 0:02:59]} 2. d4 {[%clk 0:03:00]}  d5 {[%clk 0:02:59]} 3. Nc3 {[%clk 0:03:01]}  Nf6 {[%clk 0:03:00]} 4. Bg5 {[%clk 0:03:00]}  Be7 {[%clk 0:02:59]} 5. e5 {[%clk 0:02:59]}  Nfd7 {[%clk 0:03:00]} 6. h4 {[%clk 0:03:00]}  h6 {[%clk 0:03:00]} 7. Qh5 {[%clk 0:03:00]}  g6 {[%clk 0:02:58]} 8. Bxe7 {[%clk 0:02:59]}  Qxe7 {[%clk 0:02:57]} 9. Qg4 {[%clk 0:03:00]}  a6 {[%clk 0:02:56]} 10. f4 {[%clk 0:03:00]}  c5 {[%clk 0:02:56]} 11. Nf3 {[%clk 0:02:59]}  Nc6 {[%clk 0:02:57]} 12. O-O-O {[%clk 0:02:57]}  b5 {[%clk 0:02:52]} 13. h5 {[%clk 0:02:54]}  g5 {[%clk 0:02:53]} 14. fxg5 {[%clk 0:02:53]}  cxd4 {[%clk 0:02:50]} 15. Ne2 {[%clk 0:02:27]}  Ndxe5 {[%clk 0:02:48]} 16. Nxe5 {[%clk 0:02:26]}  Nxe5 {[%clk 0:02:48]} 17. Qxd4 {[%clk 0:02:26]}  Qxg5+ {[%clk 0:02:48]} 18. Kb1 {[%clk 0:02:26]}  Bd7 {[%clk 0:02:31]} 19. Nc3 {[%clk 0:02:18]}  Rc8 {[%clk 0:02:24]} 20. Re1 {[%clk 0:02:13]}  f6 {[%clk 0:02:21]} 21. Bd3 {[%clk 0:02:02]}  O-O {[%clk 0:01:58]} 22. Rh3 {[%clk 0:01:52]}  Kh8 {[%clk 0:01:46]} 23. a3 {[%clk 0:01:42]}  Qg4 {[%clk 0:00:59]} 24. Qa7 {[%clk 0:01:33]}  Ra8 {[%clk 0:00:48]} 25. Qc7 {[%clk 0:01:30]}  Rfc8 {[%clk 0:00:48]} 26. Qd6 {[%clk 0:01:30]}  Rc6 {[%clk 0:00:49]} 27. Qe7 {[%clk 0:01:21]}  Qg7 {[%clk 0:00:48]} 28. Qb4 {[%clk 0:01:16]}  Rac8 {[%clk 0:00:45]} 29. Rf1 {[%clk 0:01:07]}  Nc4 {[%clk 0:00:38]} 30. Bxc4 {[%clk 0:00:54]}  Rxc4 {[%clk 0:00:38]} 31. Qd6 {[%clk 0:00:51]}  R4c6 {[%clk 0:00:30]} 32. Qf4 {[%clk 0:00:48]}  e5 {[%clk 0:00:29]} 33. Qf3 {[%clk 0:00:40]}  Bxh3 {[%clk 0:00:28]} 34. gxh3 {[%clk 0:00:40]}  d4 {[%clk 0:00:28]} 35. Ne4 {[%clk 0:00:37]}  Rxc2 {[%clk 0:00:20]} 36. Ng3 {[%clk 0:00:30]}  Rd2 {[%clk 0:00:16]} 37. Ne4 {[%clk 0:00:22]}  Rh2 {[%clk 0:00:12]} 38. Qf5 {[%clk 0:00:19]}  Rcc2 {[%clk 0:00:12]} 39. Ka1 {[%clk 0:00:16]}  Rxb2 {[%clk 0:00:12]} 40. Nxf6 {[%clk 0:00:09]}  Ra2+ {[%clk 0:00:12]} 41. Kb1 {[%clk 0:00:09]}  Rhb2+ {[%clk 0:00:12]} 42. Kc1 {[%clk 0:00:09]}  Qc7+ {[%clk 0:00:13]} 43. Kd1 {[%clk 0:00:07]}  Ra1+ {[%clk 0:00:13]} 44. Qb1 {[%clk 0:00:05]}  Raxb1# {[%clk 0:00:13]} 0-1


[Site "https://www.chess.com"]

[Event "Titled Tuesday Blitz June 27 Late 2023"]
[White "Womacka, Mathias"]
[Black "StarkyNZ"]
[WhiteFideId "4611390"]
[WhiteElo "2503"]
[BlackElo "2285"]
[Result "1-0"]
[Round "8"]
[TimeControl "180+2"]
[Date "2023.06.27"]
[WhiteClock "0:00:07"]
[BlackClock "0:00:19"]
[Board "79"]

1. e4 {[%clk 0:03:00]}  e6 {[%clk 0:02:59]} 2. d4 {[%clk 0:02:59]}  d5 {[%clk 0:02:59]} 3. Nd2 {[%clk 0:02:59]}  dxe4 {[%clk 0:02:59]} 4. Nxe4 {[%clk 0:03:00]}  Bd7 {[%clk 0:03:00]} 5. Nf3 {[%clk 0:02:59]}  Bc6 {[%clk 0:03:01]} 6. Bd3 {[%clk 0:02:59]}  Nd7 {[%clk 0:03:01]} 7. O-O {[%clk 0:02:56]}  Ngf6 {[%clk 0:03:02]} 8. Ned2 {[%clk 0:02:55]}  Be7 {[%clk 0:02:56]} 9. Nc4 {[%clk 0:02:53]}  b6 {[%clk 0:02:42]} 10. Nce5 {[%clk 0:02:48]}  Bb7 {[%clk 0:02:40]} 11. Bb5 {[%clk 0:02:43]}  O-O {[%clk 0:02:38]} 12. Nc6 {[%clk 0:02:43]}  Bxc6 {[%clk 0:02:38]} 13. Bxc6 {[%clk 0:02:44]}  Rb8 {[%clk 0:02:39]} 14. Qe2 {[%clk 0:02:35]}  a5 {[%clk 0:02:30]} 15. c4 {[%clk 0:02:13]}  Rc8 {[%clk 0:02:11]} 16. Rd1 {[%clk 0:02:07]}  Bd6 {[%clk 0:02:06]} 17. Bg5 {[%clk 0:02:02]}  Be7 {[%clk 0:02:03]} 18. Ne5 {[%clk 0:01:47]}  h6 {[%clk 0:01:53]} 19. Bxd7 {[%clk 0:01:43]}  hxg5 {[%clk 0:01:51]} 20. Bxc8 {[%clk 0:01:42]}  Qxc8 {[%clk 0:01:51]} 21. Nf3 {[%clk 0:01:25]}  Nh7 {[%clk 0:01:25]} 22. d5 {[%clk 0:01:24]}  Bf6 {[%clk 0:01:25]} 23. dxe6 {[%clk 0:01:22]}  fxe6 {[%clk 0:01:26]} 24. Rac1 {[%clk 0:01:12]}  e5 {[%clk 0:01:22]} 25. c5 {[%clk 0:01:08]}  Qf5 {[%clk 0:01:16]} 26. cxb6 {[%clk 0:01:06]}  cxb6 {[%clk 0:01:17]} 27. Rc4 {[%clk 0:00:53]}  g4 {[%clk 0:01:15]} 28. Nd2 {[%clk 0:00:52]}  Bh4 {[%clk 0:00:55]} 29. g3 {[%clk 0:00:46]}  Bg5 {[%clk 0:00:56]} 30. Rxg4 {[%clk 0:00:32]}  Bxd2 {[%clk 0:00:55]} 31. Rxd2 {[%clk 0:00:31]}  Ng5 {[%clk 0:00:56]} 32. Kg2 {[%clk 0:00:22]}  e4 {[%clk 0:00:55]} 33. Rf4 {[%clk 0:00:19]}  Qh3+ {[%clk 0:00:52]} 34. Kg1 {[%clk 0:00:19]}  Nf3+ {[%clk 0:00:52]} 35. Rxf3 {[%clk 0:00:16]}  exf3 {[%clk 0:00:52]} 36. Qf1 {[%clk 0:00:15]}  Qh6 {[%clk 0:00:51]} 37. Rd3 {[%clk 0:00:14]}  Qg6 {[%clk 0:00:43]} 38. Qd1 {[%clk 0:00:13]}  Qg4 {[%clk 0:00:40]} 39. h3 {[%clk 0:00:11]}  Qxh3 {[%clk 0:00:19]} 40. Rxf3 {[%clk 0:00:11]}  Rxf3 {[%clk 0:00:18]} 41. Qxf3 {[%clk 0:00:10]}  Qe6 {[%clk 0:00:18]} 42. Qb3 {[%clk 0:00:10]}  Kf7 {[%clk 0:00:18]} 43. Qxe6+ {[%clk 0:00:09]}  Kxe6 {[%clk 0:00:18]} 44. f4 {[%clk 0:00:08]}  Kd5 {[%clk 0:00:19]} 45. Kf2 {[%clk 0:00:08]}  Kd4 {[%clk 0:00:20]} 46. Kf3 {[%clk 0:00:09]}  a4 {[%clk 0:00:20]} 47. g4 {[%clk 0:00:08]}  Kd3 {[%clk 0:00:19]} 48. f5 {[%clk 0:00:08]}  Kc2 {[%clk 0:00:19]} 49. g5 {[%clk 0:00:08]}  Kxb2 {[%clk 0:00:19]} 50. f6 {[%clk 0:00:08]}  gxf6 {[%clk 0:00:18]} 51. gxf6 {[%clk 0:00:09]}  Kxa2 {[%clk 0:00:19]} 52. f7 {[%clk 0:00:09]}  a3 {[%clk 0:00:20]} 53. f8=Q {[%clk 0:00:09]}  Ka1 {[%clk 0:00:18]} 54. Qxa3+ {[%clk 0:00:07]}  Kb1 {[%clk 0:00:19]} 1-0


[Site "https://www.chess.com"]